bitfinex/quotes_SOLUSD_20230701
["timestamp","ask_amount","ask_price","bid_price","bid_amount"]
[1688185504401,23.342,18.122,18.101,85.83719922]
[1688185504704,23.342,18.122,18.102,12.77899]
[1688185504888,23.342,18.122,18.103,20.0]
[1688185505200,23.342,18.122,18.104,67.77757]
[1688185505497,23.342,18.122,18.105,43.61406922]
[1688185505698,23.342,18.122,18.106,67.77616]
[1688185505895,23.342,18.122,18.107,20.0]
[1688185506110,23.342,18.122,18.108,55.0]
[1688185506290,23.341,18.122,18.108,55.0]
[1688185506486,23.341,18.122,18.109,10.83719922]
[1688185506689,23.341,18.122,18.101,55.0]
[1688185506894,23.341,18.122,18.09,18.15]
[1688185507202,23.341,18.122,18.092,10.83719922]
[1688185507384,23.341,18.122,18.1,18.15]
[1688185507590,23.341,18.122,18.101,12.77969]
[1688185507912,23.341,18.122,18.102,20.0]
[1688185508207,23.34,18.124,18.103,23.61547922]
[1688185508503,23.34,18.124,18.11,18.15]
[1688185508700,23.34,18.124,18.111,67.77264]
[1688185508912,23.34,18.124,18.112,46.98513675]
[1688185509115,23.34,18.124,18.113,55.0]
[1688185509406,23.34,18.124,18.114,46.98513675]
[1688185509603,23.34,18.124,18.115,102.97769919]
[1688185510185,23.335,18.128,18.115,112.82233597]
[1688185510396,93.9338,18.148,18.115,112.82233597]
[1688185510397,60.058,18.133,18.116,77.82233597]
[1688185510602,23.334,18.128,18.117,55.0]
[1688185510796,23.334,18.128,18.118,94.96283594]
[1688185510996,23.334,18.128,18.118,105.80003516]
[1688185511198,23.334,18.128,18.119,55.0]
[1688185511393,23.334,18.128,18.12,94.96283594]
[1688185511787,23.334,18.128,18.121,55.0]
[1688185512195,23.334,18.128,18.121,102.97769919]
[1688185512397,23.334,18.128,18.121,47.97769919]
[1688185512590,23.334,18.128,18.122,55.0]
[1688185512904,23.334,18.128,18.122,102.97769919]
[1688185513096,23.327,18.134,18.123,100.01839149]
[1688185513296,60.041,18.138,18.123,100.01839149]
[1688185513297,23.328,18.133,18.123,100.01839149]
[1688185513495,60.027,18.142,18.124,110.3446455]
[1688185513712,23.323,18.137,18.125,100.01839149]
[1688185513891,23.323,18.137,18.126,75.0]
[1688185514210,23.323,18.137,18.127,100.01839149]
[1688185514513,23.323,18.137,18.128,55.0]
[1688185514811,23.322,18.137,18.128,142.3853378]
[1688185514992,23.322,18.137,18.128,130.3736923]
[1688185515400,23.322,18.137,18.128,107.0406923]
[1688185515713,23.322,18.137,18.128,55.0]
[1688185516595,23.322,18.137,18.128,155.00141927]
[1688185516795,23.321,18.139,18.129,135.34606477]
[1688185516995,126.73926043,18.159,18.13,55.0]
[1688185517196,23.316,18.142,18.131,52.02372008]
[1688185517502,23.316,18.142,18.132,55.0]
[1688185517707,83.342,18.142,18.132,92.87242328]
[1688185518031,83.342,18.142,18.131,100.00141927]
[1688185518214,83.342,18.142,18.128,23.333]
[1688185518598,83.342,18.142,18.129,55.0]
[1688185518911,23.316,18.142,18.131,23.329]
[1688185519105,23.316,18.142,18.132,92.87242328]
[1688185519311,23.316,18.142,18.133,23.326]
[1688185519704,23.316,18.142,18.134,55.0]
[1688185520427,23.316,18.142,18.13,47.97769919]
[1688185521005,23.316,18.142,18.13,71.30769919]
[1688185521415,23.316,18.142,18.13,123.33141927]
[1688185521922,23.316,18.142,18.132,23.328]
[1688185522126,23.316,18.142,18.133,55.0]
[1688185522307,23.316,18.142,18.133,78.327]
[1688185522614,23.316,18.142,18.13,52.02372008]
[1688185522818,23.316,18.142,18.128,23.333]
[1688185522995,23.316,18.142,18.125,100.14586371]
[1688185523316,23.316,18.142,18.12,23.343]
[1688185523515,23.316,18.142,18.12,123.48886371]
[1688185523726,23.316,18.142,18.121,100.14586371]
[1688185523904,23.316,18.142,18.122,23.34]
[1688185524104,23.316,18.142,18.122,75.36372008]
[1688185524702,23.316,18.142,18.122,23.34]
[1688185526213,23.316,18.142,18.125,23.336]
[1688185526419,23.316,18.142,18.126,55.0]
[1688185526619,23.316,18.142,18.127,23.334]
[1688185526809,23.316,18.142,18.128,55.0]
[1688185527315,23.316,18.142,18.128,89.17019922]
[1688185527513,23.316,18.142,18.129,62.8609193]
[1688185527812,23.316,18.142,18.132,23.327]
[1688185528017,23.316,18.142,18.133,155.14586371]
[1688185528212,23.316,18.142,18.133,52.02372008]
[1688185528417,23.316,18.142,18.13,23.33]
[1688185528800,23.316,18.142,18.131,55.0]
[1688185530614,23.316,18.142,18.131,23.33]
[1688185530815,23.316,18.142,18.132,55.0]
[1688185531114,23.316,18.142,18.125,23.337]
[1688185532519,23.316,18.142,18.126,55.0]
[1688185534422,23.316,18.142,18.119,60.095]
[1688185534609,18.08,18.14,18.118,95.2653]
[1688185534805,83.381,18.134,18.121,23.342]
[1688185536526,83.381,18.134,18.122,55.0]
[1688185536823,23.327,18.134,18.122,89.17719922]
[1688185537134,23.324,18.136,18.122,89.17719922]
[1688185539312,23.324,18.136,18.122,138.08200263]
[1688185539515,23.324,18.136,18.123,48.90480341]
[1688185539717,23.324,18.136,18.126,23.335]
[1688185540111,23.324,18.136,18.127,55.0]
[1688185540312,23.324,18.136,18.127,78.335]
[1688185540827,23.324,18.136,18.127,55.0]
[1688185541025,23.324,18.136,18.126,55.0]
[1688185541432,23.324,18.136,18.126,23.336]
[1688185541617,23.324,18.136,18.127,55.0]
[1688185543419,23.324,18.136,18.123,72.24480341]
[1688185543626,23.324,18.136,18.124,55.0]
[1688185544612,23.324,18.136,18.121,23.342]
[1688185544818,23.324,18.136,18.118,55.0]
[1688185545136,23.324,18.136,18.118,10.83719922]
[1688185545335,20.0,18.135,18.118,10.83719922]
[1688185545551,20.0,18.135,18.113,60.122]
[1688185545552,211.104,18.13,18.113,23.352]
[1688185546240,221.66012066,18.13,18.09,18.01]
[1688185546423,193.105,18.12,18.101,109.77]
[1688185546619,193.105,18.12,18.103,10.83719922]
[1688185546826,193.105,18.12,18.105,23.363]
[1688185548526,193.105,18.12,18.106,55.0]
[1688185549618,211.155,18.12,18.106,55.0]
[1688185549818,211.155,18.12,18.103,10.83719922]
[1688185550041,211.155,18.12,18.101,23.367]
[1688185551035,211.155,18.12,18.102,10.83719922]
[1688185551336,193.105,18.12,18.107,23.361]
[1688185552043,193.105,18.12,18.108,55.0]
[1688185552539,193.105,18.12,18.105,23.362]
[1688185552740,193.105,18.12,18.106,55.0]
[1688185556030,193.105,18.12,18.105,55.0]
[1688185556228,211.215,18.12,18.101,23.367]
[1688185556425,222.03176766,18.12,18.102,78.367]
[1688185556626,222.03176766,18.12,18.1,34.20619922]
[1688185556843,211.215,18.12,18.1,23.369]
[1688185557344,211.215,18.12,18.099,10.83719922]
[1688185557524,20.0,18.119,18.099,34.20819922]
[1688185557836,20.0,18.119,18.092,158.2799]
[1688185557837,83.475,18.113,18.097,23.372]
[1688185558024,20.0,18.112,18.097,23.372]
[1688185558220,23.36,18.108,18.097,34.20919922]
[1688185559339,23.358,18.109,18.101,23.368]
[1688185559531,23.358,18.109,18.102,78.367]
[1688185559936,23.358,18.109,18.102,55.0]
[1688185561322,60.116,18.115,18.102,65.83719922]
[1688185561540,23.356,18.111,18.103,10.83719922]
[1688185561739,23.356,18.111,18.104,78.364]
[1688185563139,23.356,18.111,18.104,55.0]
[1688185563335,23.356,18.111,18.094,60.184]
[1688185563541,23.356,18.111,18.094,23.377]
[1688185563728,18.11,18.11,18.092,132.30509922]
[1688185564042,83.514,18.105,18.092,98.0889]
[1688185564223,83.514,18.105,18.084,27.85595175]
[1688185564224,83.514,18.105,18.088,10.83719922]
[1688185564422,83.514,18.105,18.088,34.22219922]
[1688185565425,83.548,18.098,18.083,23.391]
[1688185565938,83.548,18.098,18.082,10.83719922]
[1688185566244,83.548,18.098,18.083,34.22819922]
[1688185566444,83.548,18.098,18.074,138.24197799]
[1688185566658,83.548,18.098,18.072,60.257]
[1688185566961,23.383,18.09,18.076,23.4]
[1688185567249,23.381,18.091,18.081,23.394]
[1688185567426,23.381,18.091,18.076,12.79737]
[1688185567427,23.381,18.091,18.079,23.396]
[1688185567630,23.381,18.091,18.077,23.398]
[1688185567832,23.381,18.091,18.075,23.401]
[1688185568035,23.381,18.091,18.073,23.404]
[1688185569129,23.381,18.091,18.061,494.5]
[1688185569130,18.11,18.09,18.066,23.413]
[1688185569349,18.11,18.08,18.061,23.42]
[1688185569544,83.654,18.075,18.061,23.42]
[1688185570034,83.654,18.075,18.057,23.424]
[1688185570446,83.654,18.075,18.052,60.324]
[1688185570447,20.0,18.074,18.052,60.324]
[1688185570656,23.411,18.069,18.053,99.7911]
[1688185570845,23.411,18.069,18.055,23.427]
[1688185571032,23.411,18.069,18.055,22.927]
[1688185571232,23.411,18.069,18.053,23.43]
[1688185571428,133.378,18.069,18.052,23.431]
[1688185571638,23.411,18.069,18.053,23.43]
[1688185571945,23.405,18.073,18.06,23.421]
[1688185572145,60.228,18.082,18.06,23.421]
[1688185572335,35.82667859,18.085,18.06,41.471]
[1688185572536,23.394,18.082,18.06,41.471]
[1688185572737,23.391,18.084,18.069,23.41]
[1688185572942,23.391,18.084,18.069,22.41]
[1688185573336,23.403,18.075,18.07,55.0]
[1688185573647,83.661,18.073,18.07,55.0]
[1688185573855,83.661,18.073,18.042,30.0]
[1688185573856,148.5820285,18.072,18.042,53.444]
[1688185574157,18.05,18.06,18.042,30.0]
[1688185574352,18.05,18.05,18.042,30.0]
[1688185574654,23.438,18.048,18.038,23.449]
[1688185574844,277.64126427,18.059,18.038,23.449]
[1688185575049,52.82430488,18.047,18.034,30.0]
[1688185575252,23.439,18.047,18.02,18.06]
[1688185575567,110.058,18.054,18.028,23.463]
[1688185575764,23.436,18.049,18.028,23.463]
[1688185576065,23.436,18.049,18.028,110.058]
[1688185576241,23.449,18.039,18.01,16.65]
[1688185576435,23.459,18.032,18.013,23.482]
[1688185576637,23.459,18.032,18.012,23.483]
[1688185576936,23.459,18.032,18.013,60.384]
[1688185577131,23.455,18.034,18.018,23.476]
[1688185577336,60.368,18.04,18.018,23.476]
[1688185577532,18.31,18.06,18.02,16.65]
[1688185577732,23.442,18.045,18.02,18.31]
[1688185577948,23.443,18.044,18.028,23.462]
[1688185578139,23.435,18.05,18.028,133.679]
[1688185578352,23.429,18.054,18.03,18.15]
[1688185578560,23.414,18.066,18.04,18.31]
[1688185578733,60.25,18.075,18.047,193.874]
[1688185579051,23.413,18.067,18.055,23.428]
[1688185579257,60.265,18.073,18.055,23.428]
[1688185579442,60.235,18.079,18.056,75.0]
[1688185579755,109.891,18.082,18.056,55.0]
[1688185579756,23.407,18.072,18.056,55.0]
[1688185580254,83.704,18.064,18.047,55.0]
[1688185580437,193.783,18.057,18.047,55.0]
[1688185580641,193.783,18.057,18.025,170.65]
[1688185580954,18.21,18.05,18.031,23.458]
[1688185581146,23.427,18.056,18.031,23.458]
[1688185581339,20.0,18.055,18.031,23.458]
[1688185581545,23.437,18.048,18.031,23.458]
[1688185582045,110.940666,18.057,18.031,23.458]
[1688185582248,60.294,18.062,18.032,20.0]
[1688185582560,23.417,18.064,18.041,23.446]
[1688185582759,23.409,18.07,18.041,23.446]
[1688185583056,23.409,18.07,18.045,3.0]
[1688185583271,102.485294,18.077,18.055,3.0]
[1688185583559,109.846,18.089,18.061,83.712]
[1688185583756,18.33,18.1,18.07,83.671]
[1688185583939,60.178,18.097,18.078,23.397]
[1688185584139,23.376,18.096,18.084,23.389]
[1688185584342,23.373,18.098,18.084,23.389]
[1688185585152,23.373,18.098,18.084,22.889]
[1688185585362,23.373,18.098,18.076,170.162]
[1688185585363,23.373,18.098,18.082,23.392]
[1688185586040,23.373,18.098,18.087,23.386]
[1688185586250,83.545,18.098,18.083,55.0]
[1688185586544,18.31,18.09,18.083,55.0]
[1688185586751,23.385,18.088,18.083,55.0]
[1688185587256,23.382,18.091,18.069,109.964]
[1688185587555,23.374,18.097,18.083,23.391]
[1688185587753,83.549,18.097,18.075,23.402]
[1688185588066,83.549,18.097,18.05,170.411]
[1688185588067,18.31,18.08,18.05,170.411]
[1688185588353,18.31,18.08,18.041,54.79]
[1688185588354,18.21,18.07,18.045,30.0]
[1688185588655,18.21,18.07,18.033,91.9912]
[1688185588656,193.714,18.063,18.046,22.165667]
[1688185588851,193.714,18.063,18.033,91.9912]
[1688185588852,42.17778458,18.062,18.042,23.444]
[1688185589157,23.418,18.063,18.042,23.444]
[1688185589354,18.31,18.06,18.042,60.38]
[1688185589552,18.31,18.05,18.042,59.88]
[1688185589747,47.73889569,18.05,18.025,3.0]
[1688185589949,47.73889569,18.05,18.021,91.9912]
[1688185589950,71.17389569,18.05,18.033,60.389]
[1688185590149,71.17389569,18.05,18.02,18.31]
[1688185590150,47.59445125,18.049,18.024,110.238]
[1688185590350,23.445,18.042,18.019,110.271]
[1688185590659,23.445,18.042,18.023,23.469]
[1688185591049,18.31,18.06,18.023,23.469]
[1688185591050,60.329,18.051,18.024,3.0]
[1688185591248,23.439,18.047,18.032,23.458]
[1688185591558,18.31,18.06,18.032,23.458]
[1688185591559,23.422,18.06,18.034,3.0]
[1688185591859,18.21,18.08,18.046,83.782]
[1688185591860,60.261,18.072,18.046,83.782]
[1688185592071,60.273,18.068,18.046,83.782]
[1688185592369,18.21,18.09,18.05,18.31]
[1688185592665,590.3,18.126,18.071,193.619]
[1688185592666,23.381,18.092,18.071,193.619]
[1688185592844,23.38,18.093,18.072,20.0]
[1688185593246,60.158,18.103,18.08,23.395]
[1688185593461,23.371,18.1,18.08,23.395]
[1688185593655,274.79148999,18.13,18.08,23.395]
[1688185593656,110.637942,18.098,18.08,23.395]
[1688185593863,109.12797712,18.117,18.081,20.0]
[1688185594160,109.12797712,18.117,18.091,23.38]
[1688185594161,23.352,18.114,18.091,23.38]
[1688185594354,18.31,18.11,18.091,23.381]
[1688185594549,11.15572008,18.113,18.091,23.381]
[1688185594550,23.361,18.107,18.091,23.381]
[1688185595058,23.361,18.107,18.091,23.38]
[1688185596549,23.361,18.107,18.092,55.0]
[1688185596748,23.361,18.107,18.094,23.377]
[1688185597049,23.355,18.112,18.095,20.0]
[1688185597248,23.355,18.112,18.096,23.374]
[1688185597459,23.355,18.112,18.097,20.0]
[1688185597655,23.355,18.112,18.101,23.368]
[1688185598049,23.352,18.114,18.101,23.368]
[1688185599454,23.359,18.109,18.085,109.867]
[1688185599654,23.359,18.109,18.086,80.209]
[1688185600163,23.359,18.109,18.086,43.387]
[1688185600350,58.20057,18.108,18.086,43.387]
[1688185600558,23.368,18.102,18.086,43.387]
[1688185601071,23.365,18.104,18.086,43.387]
[1688185601451,23.365,18.104,18.081,23.393]
[1688185601655,3.20057,18.108,18.072,23.406]
[1688185601656,83.579,18.091,18.072,23.406]
[1688185601857,46.12808823,18.093,18.072,23.406]
[1688185602056,23.379,18.093,18.072,23.406]
[1688185602265,23.379,18.093,18.07,23.408]
[1688185602457,12.13,18.09,18.058,60.303]
[1688185602660,12.13,18.09,18.057,23.424]
[1688185602964,23.395,18.081,18.057,105.886889]
[1688185603356,20.0,18.08,18.057,22.153889]
[1688185603564,20.0,18.08,18.034,3.0]
[1688185603565,193.601,18.074,18.036,60.376]
[1688185603765,193.601,18.074,18.032,60.391]
[1688185603766,12.11,18.07,18.032,60.391]
[1688185603956,193.753,18.059,18.035,23.453]
[1688185604155,193.753,18.059,18.024,110.241]
[1688185604469,110.028,18.059,18.031,23.459]
[1688185604656,23.427,18.057,18.031,23.459]
[1688185604863,23.429,18.055,18.024,170.657]
[1688185605063,23.429,18.055,18.027,23.464]
[1688185605274,62.49453715,18.06,18.027,23.464]
[1688185605275,110.003,18.063,18.029,23.461]
[1688185605459,36.28385397,18.06,18.029,23.461]
[1688185605659,23.428,18.055,18.029,23.461]
[1688185606457,23.428,18.055,18.01,12.05]
[1688185606458,23.428,18.055,18.037,23.451]
[1688185606658,60.293,18.062,18.037,23.451]
[1688185606871,55.0,18.054,18.037,23.451]
[1688185607474,60.291,18.063,18.037,23.451]
[1688185607672,23.412,18.068,18.037,23.451]
[1688185607871,23.412,18.068,18.04,12.11]
[1688185608110,109.929,18.076,18.048,193.865]
[1688185608111,23.408,18.071,18.048,193.865]
[1688185608373,23.409,18.07,18.048,193.865]
[1688185608874,60.212,18.086,18.049,20.0]
[1688185609062,23.4,18.077,18.06,23.421]
[1688185609571,60.225,18.082,18.06,23.421]
[1688185609771,60.225,18.082,18.06,35.471]
[1688185609976,23.379,18.093,18.062,333.0]
[1688185610272,23.379,18.093,18.071,83.668]
[1688185610573,23.375,18.096,18.072,20.0]
[1688185610781,23.375,18.096,18.079,23.397]
[1688185611085,23.375,18.096,18.079,83.632]
[1688185611379,23.375,18.096,18.079,23.397]
[1688185611554,23.375,18.096,18.08,55.0]
[1688185611755,109.789,18.099,18.08,55.0]
[1688185611756,83.536,18.099,18.08,55.0]
[1688185612084,23.363,18.106,18.085,23.388]
[1688185612472,23.363,18.106,18.092,23.38]
[1688185612682,23.36,18.108,18.092,23.38]
[1688185612974,36.28385397,18.128,18.092,23.38]
[1688185612975,109.63,18.125,18.092,23.38]
[1688185613158,23.347,18.118,18.092,23.38]
[1688185613359,23.347,18.118,18.093,20.0]
[1688185613677,23.347,18.118,18.1,23.369]
[1688185614174,23.346,18.119,18.101,55.0]
[1688185614659,23.346,18.119,18.102,23.366]
[1688185615064,23.346,18.119,18.103,55.0]
[1688185615368,46.692,18.119,18.103,78.365]
[1688185615593,23.346,18.119,18.103,23.365]
[1688185617278,23.338,18.125,18.108,23.359]
[1688185617461,60.046,18.137,18.109,55.0]
[1688185617664,23.332,18.13,18.117,23.348]
[1688185618064,23.332,18.13,18.107,60.141]
[1688185618262,23.332,18.13,18.115,23.35]
[1688185618666,22.777738,18.13,18.115,23.35]
[1688185620082,82.843738,18.13,18.113,23.352]
[1688185620378,55.0,18.129,18.106,60.144]
[1688185620679,23.341,18.123,18.107,20.0]
[1688185620982,23.341,18.123,18.107,43.36]
[1688185621891,12.71951,18.128,18.107,43.36]
[1688185622190,60.07,18.129,18.108,55.0]
[1688185622485,284.17149401,18.186,18.109,23.358]
[1688185622486,23.339,18.124,18.109,23.358]
[1688185622663,23.339,18.124,18.11,23.356]
[1688185622865,23.337,18.126,18.11,23.356]
[1688185623670,23.335,18.128,18.11,23.356]
[1688185623871,23.335,18.128,18.116,23.349]
[1688185624289,23.335,18.128,18.114,23.351]
[1688185624884,60.059,18.133,18.114,83.47]
[1688185625471,60.069,18.134,18.114,83.47]
[1688185625676,60.046,18.137,18.114,83.47]
[1688185625977,60.046,18.137,18.115,55.0]
[1688185626180,23.331,18.131,18.121,23.342]
[1688185627090,23.328,18.133,18.121,23.342]
[1688185627869,60.042,18.138,18.121,23.342]
[1688185628373,23.326,18.134,18.12,23.343]
[1688185629182,23.326,18.134,18.107,129.735]
[1688185629484,83.419,18.126,18.112,23.353]
[1688185629699,23.337,18.126,18.112,23.353]
[1688185630777,23.335,18.127,18.112,23.353]
[1688185634888,23.335,18.127,18.112,83.478]
[1688185636278,23.335,18.127,18.112,23.353]
[1688185636480,34.17219922,18.127,18.088,20.0]
[1688185636692,75.0,18.126,18.106,23.362]
[1688185636904,83.443,18.12,18.106,23.361]
[1688185640288,23.344,18.121,18.106,34.19819922]
[1688185640593,23.341,18.123,18.107,85.83719922]
[1688185640887,23.34,18.123,18.111,83.48]
[1688185641089,23.34,18.123,18.112,55.0]
[1688185641287,23.34,18.123,18.115,23.35]
[1688185641489,23.34,18.123,18.112,55.0]
[1688185641789,23.34,18.123,18.113,23.352]
[1688185641990,23.34,18.123,18.112,23.354]
[1688185642287,23.34,18.123,18.112,23.353]
[1688185644491,169.659,18.131,18.113,55.0]
[1688185644786,23.337,18.126,18.116,23.348]
[1688185644989,23.337,18.126,18.107,23.353]
[1688185645176,23.337,18.126,18.105,60.147]
[1688185645372,26.68179,18.126,18.106,20.0]
[1688185645591,10.83719922,18.125,18.104,23.363]
[1688185645791,193.114,18.119,18.098,60.171]
[1688185645994,55.0,18.118,18.098,60.171]
[1688185646198,23.354,18.112,18.101,23.367]
[1688185646403,23.354,18.112,18.099,23.37]
[1688185646581,55.0,18.111,18.089,60.201]
[1688185646906,23.364,18.105,18.092,23.379]
[1688185647281,23.357,18.111,18.092,23.379]
[1688185647789,34.19419922,18.111,18.092,23.379]
[1688185647998,55.0,18.11,18.091,23.38]
[1688185648199,83.514,18.105,18.086,60.119]
[1688185648384,20.0,18.104,18.081,60.226]
[1688185648579,67.13,18.11,18.086,23.387]
[1688185648790,60.153,18.104,18.086,23.387]
[1688185649387,23.366,18.103,18.086,23.387]
[1688185649782,23.366,18.103,18.087,20.0]
[1688185649987,23.366,18.103,18.089,23.383]
[1688185650392,23.364,18.105,18.089,23.383]
[1688185651182,23.364,18.105,18.09,55.0]
[1688185651493,80.206,18.113,18.093,83.568]
[1688185651699,23.359,18.109,18.1,23.37]
[1688185652282,23.359,18.109,18.098,23.371]
[1688185652481,23.359,18.109,18.093,23.377]
[1688185652688,23.359,18.109,18.088,156.5342]
[1688185652689,23.359,18.109,18.091,23.38]
[1688185652892,193.29,18.103,18.087,23.385]
[1688185653181,58.39121,18.108,18.071,60.261]
[1688185653182,193.369,18.095,18.071,60.261]
[1688185653393,20.0,18.094,18.071,60.261]
[1688185653695,83.594,18.088,18.065,96.3312]
[1688185653896,83.594,18.088,18.072,23.405]
[1688185654100,23.386,18.088,18.072,133.354]
[1688185654288,60.176,18.097,18.072,133.354]
[1688185654599,23.383,18.091,18.072,243.172]
[1688185654798,23.383,18.091,18.078,23.398]
[1688185655380,23.38,18.093,18.078,23.398]
[1688185655602,23.377,18.095,18.078,23.398]
[1688185655803,23.372,18.099,18.078,23.398]
[1688185656593,23.372,18.099,18.076,60.245]
[1688185656594,23.372,18.099,18.085,23.389]
[1688185656898,23.372,18.099,18.088,23.384]
[1688185657486,23.372,18.099,18.086,23.387]
[1688185657800,133.157,18.099,18.082,23.392]
[1688185657991,133.157,18.099,18.078,60.238]
[1688185658188,3.43717,18.098,18.078,23.397]
[1688185658390,193.399,18.092,18.075,60.248]
[1688185658598,193.399,18.092,18.076,20.0]
[1688185658809,193.399,18.092,18.078,23.398]
[1688185659100,23.38,18.092,18.078,23.398]
[1688185659704,83.572,18.092,18.078,23.398]
[1688185660090,23.38,18.092,18.078,23.398]
[1688185660295,23.377,18.095,18.078,23.398]
[1688185660907,23.375,18.097,18.078,23.398]
[1688185661499,23.375,18.097,18.079,55.0]
[1688185661799,23.375,18.097,18.084,23.39]
[1688185662690,23.375,18.097,18.088,23.384]
[1688185663313,23.375,18.097,18.087,23.386]
[1688185663491,23.375,18.097,18.085,23.388]
[1688185663804,23.375,18.097,18.082,23.392]
[1688185664006,23.375,18.097,18.08,23.395]
[1688185665514,23.375,18.097,18.081,55.0]
[1688185665992,23.375,18.097,18.081,23.393]
[1688185667194,23.375,18.097,18.079,23.396]
[1688185668202,23.375,18.097,18.076,20.0]
[1688185668393,193.424,18.09,18.072,23.405]
[1688185668800,83.62,18.082,18.07,23.408]
[1688185669001,83.62,18.082,18.066,23.413]
[1688185669201,83.62,18.082,18.07,23.408]
[1688185669705,23.394,18.082,18.07,23.408]
[1688185669907,23.39,18.084,18.07,23.408]
[1688185670117,23.389,18.086,18.07,23.408]
[1688185671604,119.894,18.091,18.07,23.408]
[1688185671800,23.388,18.086,18.07,23.408]
[1688185672008,23.388,18.086,18.075,23.401]
[1688185675307,60.204,18.094,18.075,83.649]
[1688185675595,23.381,18.092,18.076,75.0]
[1688185675796,23.381,18.092,18.078,23.397]
[1688185676293,3.25852,18.091,18.05,18.21]
[1688185676498,193.494,18.084,18.061,110.014]
[1688185676698,193.494,18.084,18.052,30.0]
[1688185676918,193.494,18.084,18.053,23.43]
[1688185676919,193.617,18.072,18.053,23.43]
[1688185677513,55.0,18.071,18.053,23.43]
[1688185677698,83.694,18.066,18.053,23.43]
[1688185678695,23.414,18.066,18.053,23.43]
[1688185680609,23.412,18.068,18.053,23.43]
[1688185681021,23.412,18.068,18.054,55.0]
[1688185681209,23.412,18.068,18.058,23.424]
[1688185681514,23.412,18.068,18.057,23.425]
[1688185682016,23.412,18.068,18.054,23.429]
[1688185682213,23.412,18.068,18.053,23.43]
[1688185682421,23.412,18.068,18.051,23.433]
[1688185685216,23.409,18.07,18.051,23.433]
[1688185685526,23.409,18.07,18.052,55.0]